Cogmind - Beta 9.3 @@@ ROGUE MODE // 2019.12.17 @ 18:37:45 // Winter2019/RPGLIKE Player: Terminus Result: Destroyed by DAS Turret with DAS Cannon Performance ------------- Evolutions (1) 500 Regions Visited (5) 1000 Robots Destroyed (109) 545 Value Destroyed (2206) 2206 Prototype IDs (25) 500 Alien Tech Used (0) 0 Bonus (648) 648 TOTAL SCORE: 5399 Bonus ------- High Alert Combat Kills 483 Aligned with FarCom 300 Friendly Fire -135 Cogmind --------- Core Integrity 0/650 Matter 119/300 Energy 429/465 System Corruption 0% Temperature Cool (3) Movement Flying (32) Location -9/Exiles Parts ------- > --- POWER (1) -------- Improved Ion Engine > --- PROPULSION (3) --- VTOL Module Improved Flight Unit Xenon Bombardment Thruster > --- UTILITY (6) ------ Improved Heat Sink Medium Battery Improved Signal Interpreter Improved Targeting Computer Hacking Suite Hacking Suite > --- WEAPON (3) ------- Improved EM Shotgun EMP Blaster EMP Blaster > --- INVENTORY (6) ---- Modified TNC Improved Medium Laser EM Pulse Cannon Rocket Launcher Field Lobotomy Kit Peak State ------------ > --- POWER ------------ Improved Ion Engine > --- PROPULSION ------- VTOL Module Improved Flight Unit Xenon Bombardment Thruster > --- UTILITY ---------- Improved Heat Sink Medium Battery Improved Signal Interpreter Improved Targeting Computer Hacking Suite Hacking Suite > --- WEAPON ----------- Improved Medium Laser EM Pulse Cannon EMP Blaster > --- INVENTORY -------- Protomatter Protomatter VTOL Module Improved EM Shotgun EMP Blaster Plasma Cutter [Rating: 34] Favorites ----------- Power Improved Ion Engine Engine Improved Ion Engine Propulsion Flight Unit Leg Aluminum Leg Flight Unit Flight Unit Utility Hacking Suite Device Improved Heat Sink Storage Medium Battery Processor Improved Signal Interpreter Hackware Hacking Suite Weapon EMP Blaster Energy Gun Medium Laser Energy Cannon EM Pulse Cannon Ballistic Gun Assault Rifle Ballistic Cannon Improved Light Cannon Launcher EMP Blaster Special Weapon Plasma Cutter Build | -11 -10 -10 -9 -9 -9 ------- Run | Scr Mat Min Mat Min Exi Slots Evolved 9 | 4 2 . 3 . . Power . | . . . . . . Propulsion 2 | 1 . . 1 . . Utility 5 | 2 2 . 1 . . Weapon 2 | 1 . . 1 . . Parts Attached 51 | 5 18 . 22 3 3 Power 3 | 1 . . 2 . . Engine 3 | 1 . . 2 . . Core . | . . . . . . Reactor . | . . . . . . Propulsion 10 | 2 2 . 5 1 . Treads . | . . . . . . Leg 2 | 2 . . . . . Wheel . | . . . . . . Hover . | . . . . . . Flight 8 | . 2 . 5 1 . Utility 12 | . 7 . 4 1 . Device 6 | . 4 . 2 . . Storage 2 | . 2 . . . . Processor 2 | . . . 1 1 . Hackware 2 | . 1 . 1 . . Protection . | . . . . . . Artifact . | . . . . . . Weapon 26 | 2 9 . 11 1 3 Energy Gun 10 | . 3 . 5 . 2 Energy Cannon 3 | . . . 3 . . Ballistic Gun 2 | 2 . . . . . Ballistic Cannon 3 | . 2 . 1 . . Launcher 7 | . 3 . 2 1 1 Special Weapon 1 | . 1 . . . . Impact Weapon . | . . . . . . Slashing Weapon . | . . . . . . Piercing Weapon . | . . . . . . Special Melee Weapon . | . . . . . . Unidentified Prototypes 3 | . . . 3 . . Parts Lost 2 | . 1 . 1 . . Power . | . . . . . . Propulsion 2 | . 1 . 1 . . Utility . | . . . . . . Weapon . | . . . . . . Highest Loss Streak 1 | . 1 . 1 . . Average Slot Usage (%) 85 | . 75 70 88 92 100 Engine 9 | . 11 10 8 7 7 Flight 18 | . 9 10 23 23 23 Device 13 | . 24 10 8 7 7 Storage 6 | . 3 10 8 7 7 Processor 4 | . . . 5 7 15 Hackware 9 | . 3 10 11 15 15 Energy Gun 7 | . 7 10 8 6 5 Energy Cannon 2 | . . . 3 7 1 Ballistic Gun 2 | . 5 . . . . Launcher 9 | . 8 10 8 7 15 Naked Turns . | . . . . . . Heaviest Build 24 | 8 16 14 23 24 24 Greatest Support 28 | 13 18 14 26 28 28 Greatest Overweight (x) 1 | . 1 . . . . Average Overweight (x) . | . . . . . . Largest Inventory Capacity 6 | 1 2 2 5 6 6 Average Capacity 3 | 1 1 2 3 5 6 Most Carried 6 | 1 2 2 5 6 6 Average Carried 3 | . 1 2 3 5 5 Final Capacity 6 | 1 2 2 5 6 6 Final Carried 6 | 1 2 2 5 6 5 Class Distribution -------------------- 41% | Mutant 36% | Hacker-Sprinter 15% | Scavenger-Mutant 6% | Hacker-Mutant Dominant Class ---------------- Mutant | -10/Materials Mutant | -10/Mines Scavenger-Mutant | -9/Materials Hacker-Sprinter | -9/Mines Hacker-Sprinter | -9/Exiles Resources | -11 -10 -10 -9 -9 -9 ----------- Run | Scr Mat Min Mat Min Exi Matter Collected 1299 | 227 456 . 554 62 . Remotely . | . . . . . . Salvage Created 3005 | . 795 . 1767 428 15 Parts 219 | . 65 . 134 20 . Haulers Intercepted 7 | . 2 . 5 . . Recyclers Shooed 1 | . . . 1 . . Parts Field Recycled . | . . . . . . Retrieved Matter . | . . . . . . Parts Self-Destructed . | . . . . . . Prevented . | . . . . . . Kills | -11 -10 -10 -9 -9 -9 ------- Run | Scr Mat Min Mat Min Exi Combat Hostiles Destroyed 79 | . 20 . 39 13 7 Guns 9 | . 7 . 2 . . Cannons 7 | . . . 2 5 . AOE 60 | . 13 . 32 8 7 Classes Destroyed 14 | . 7 . 5 1 1 Worker 9 | . 5 . 4 . . Builder 2 | . 1 . 1 . . Tunneler 2 | . . . 2 . . Hauler 7 | . 2 . 5 . . Recycler 1 | . . . . 1 . Operator 2 | . 2 . . . . Watcher 7 | . 2 . 5 . . Swarmer 30 | . 6 . 14 10 . Grunt 29 | . 14 . 12 3 . Brawler 2 | . . . 2 . . Duelist 2 | . . . 2 . . Protector 1 | . . . 1 . . Sentry 8 | . . . 8 . . Assembled 7 | . . . . . 7 Best Kill Streak 9 | . 5 . 9 4 7 Combat Bots Only 7 | . 3 . 5 4 7 Max Kills in Single Turn 4 | . 4 . 3 3 3 Gunslinging . | . . . . . . Exploded 3 | . 2 . 2 2 3 Melee . | . . . . . . Uniques/NPCs Destroyed . | . . . . . . Combat | -11 -10 -10 -9 -9 -9 -------- Run | Scr Mat Min Mat Min Exi Damage Taken 2380 | . 616 . 509 248 1007 Core 1940 | . 500 . 422 200 818 Absorbed by Shields . | . . . . . . Redirected to Core 1478 | . 356 . 287 161 674 Core Remaining (%) 97 | 100 . 94 . . . Volleys Fired 335 | . 130 . 127 30 48 Largest 2 | . 2 . 2 1 2 Hottest 89 | . 70 . 89 63 66 Shots Fired 384 | . 157 . 140 30 57 Gun 191 | . 125 . 33 . 33 Cannon 58 | . . . 41 17 . Launcher 131 | . 28 . 66 13 24 Special 4 | . 4 . . . . Kinetic 79 | . 64 . 15 . . Thermal 102 | . 65 . 33 . 4 Explosive 5 | . . . . . 5 Electromagnetic 198 | . 28 . 92 30 48 Robot Hit Streak 68 | . 10 . 15 5 68 Robot Miss Streak 6 | . 3 . 6 2 1 Penetration Max . | . . . . . . Secondary Targets . | . . . . . . Shots Hit Robots 233 | . 99 . 67 15 52 Core Hits 167 | . 52 . 74 17 24 Critical Hits 1 | . . . 1 . . Critical Kills . | . . . . . . Critical Parts Destroyed 1 | . . . 1 . . Melee Attacks . | . . . . . . Impact . | . . . . . . Slashing . | . . . . . . Piercing . | . . . . . . Sneak Attacks . | . . . . . . Combat Hostiles . | . . . . . . Follow-up Attacks . | . . . . . . Damage Inflicted 6452 | . 2024 . 3004 844 580 Guns 1295 | . 920 . 284 . 91 Cannons 1019 | . . . 724 295 . Explosions 4126 | . 1092 . 1996 549 489 Melee . | . . . . . . Ramming . | . . . . . . Kinetic 554 | . 382 . 172 . . Thermal 1677 | . 805 . 593 212 67 Explosive 463 | . . . . . 463 Electromagnetic 3758 | . 837 . 2239 632 50 Impact . | . . . . . . Slashing . | . . . . . . Piercing . | . . . . . . Highest Corruption . | . . . . . . Average Corruption . | . . . . . . Corruption Purged . | . . . . . . Overload Shots . | . . . . . . Overflow Damage 66 | . 12 . 24 29 1 Projectiles 32 | . . . 24 8 . Explosions 34 | . 12 . . 21 1 Melee . | . . . . . . Knockbacks . | . . . . . . Impact . | . . . . . . Kinetic . | . . . . . . Secondary . | . . . . . . Self-Inflicted Damage 176 | . 9 . 73 94 . Shots 11 | . 2 . 5 4 . Rammed . | . . . . . . Targets Rammed . | . . . . . . Kicked . | . . . . . . Crushed . | . . . . . . Highest Temperature 268 | . . . 268 7 . Average Temperature 60 | . . . 65 3 . Received Heat Transfer 327 | . 201 . 117 9 . Siege Activations . | . . . . . . Robots Corrupted 4 | . . . 4 . . Combat Hostiles 3 | . . . 3 . . Parts Fried 15 | . 3 . 11 1 . Impact Corruptions . | . . . . . . Robots Melted . | . . . . . . Combat Hostiles . | . . . . . . Parts Melted 3 | . 2 . 1 . . Heat Transferred 3927 | . 2128 . 1351 300 148 Parts Sabotaged . | . . . . . . Parts Stolen . | . . . . . . Parts Stripped . | . . . . . . Power Chain Reactions 30 | . 10 . 17 3 . Missiles Intercepted . | . . . . . . Alert | -11 -10 -10 -9 -9 -9 ------- Run | Scr Mat Min Mat Min Exi Peak Influence 1023 | . 558 172 1023 629 . Average Influence 496 | . 355 172 679 514 . Maximum Alert Level 3 | . 2 . 3 2 . Low Security (%) 12 | 100 17 100 6 . . Level 1 19 | . 27 . 10 23 . Level 2 44 | . 55 . 19 76 . Level 3 23 | . . . 62 . . Level 4 . | . . . . . . Level 5 . | . . . . . . High Security . | . . . . . . Max Security . | . . . . . . Squads Dispatched 13 | . 6 . 7 . . Investigation 4 | . 2 . 2 . . Extermination . | . . . . . . Reinforcement 8 | . 4 . 4 . . Assault 1 | . . . 1 . . Garrison . | . . . . . . Intercept . | . . . . . . Construction Impeded 1 | . . . 1 . . Haulers Reinforced . | . . . . . . Stealth | -11 -10 -10 -9 -9 -9 --------- Run | Scr Mat Min Mat Min Exi Distress Signals 2 | . 1 . 1 . . Communications Jammed . | . . . . . . Distress Signals . | . . . . . . Times Spotted 113 | . 43 2 54 11 3 Peak Tracking Total 9 | . 5 2 7 4 9 Tactical Retreats 5 | . 3 . 1 . 1 Traps | -11 -10 -10 -9 -9 -9 ------- Run | Scr Mat Min Mat Min Exi Traps Triggered 6 | . 1 . 4 1 . Indirectly 1 | . . . 1 . . Trap Hack Attempts . | . . . . . . Triggered . | . . . . . . Disarmed . | . . . . . . Reprogrammed . | . . . . . . Reused . | . . . . . . Traps Extracted . | . . . . . . Installed . | . . . . . . Triggered . | . . . . . . Machines | -11 -10 -10 -9 -9 -9 ---------- Run | Scr Mat Min Mat Min Exi Machines Disabled 13 | . 3 . 7 2 1 Max in Single Turn 2 | . 2 . 2 1 1 Machines Sabotaged . | . . . . . . Garrisons Compromised . | . . . . . . Overloaded Fab Kills . | . . . . . . Fab Network Shutdowns . | . . . . . . Hacking | -11 -10 -10 -9 -9 -9 --------- Run | Scr Mat Min Mat Min Exi Machines Accessed 18 | . 6 . 9 1 2 Terminals 12 | . 4 . 8 . . Fabricators . | . . . . . . Repair Stations . | . . . . . . Recycling Units 3 | . 2 . 1 . . Scanalyzers . | . . . . . . Garrison Access . | . . . . . . Total Hacks 55 | . 17 . 32 1 5 Successful 34 | . 10 . 18 1 5 Failed 21 | . 7 . 14 . . Catastrophic 1 | . . . 1 . . Database Lockouts . | . . . . . . Manual 36 | . 10 . 25 . 1 Terminals 38 | . 9 . 29 . . Fabricators . | . . . . . . Repair Stations . | . . . . . . Recycling Units 11 | . 8 . 3 . . Scanalyzers . | . . . . . . Garrison Access . | . . . . . . Terminal Hacks 19 | . 3 . 10 1 5 Record 4 | . . . . . 4 Open Door 1 | . . . . 1 . Alert Level 3 | . 1 . 2 . . Unreport Threat 3 | . . . 3 . . Hauler Manifests 1 | . . . 1 . . Zone Layout 6 | . 2 . 4 . . EX-Prototype ID Bank 1 | . . . . . 1 Fabricator Hacks . | . . . . . . Repair Station Hacks . | . . . . . . Recycling Unit Hacks 3 | . 3 . . . . Retrieve Components 3 | . 3 . . . . Scanalyzer . | . . . . . . Garrison Access Hacks . | . . . . . . Unauthorized Hacks 30 | . 9 . 21 . . Terminals 11 | . 3 . 8 . . Track 1 | . . . 1 . . Assimilate 1 | . 1 . . . . Botnet 9 | . 2 . 7 . . Fabricators . | . . . . . . Repair Stations . | . . . . . . Recycling Units 1 | . 1 . . . . Tunnel 1 | . 1 . . . . Scanalyzers . | . . . . . . Garrison Access . | . . . . . . Data Cores Recovered . | . . . . . . Used . | . . . . . . Hacking Detections 13 | . 5 . 8 . . Full Trace Events 3 | . . . 3 . . Feedback Events . | . . . . . . Feedback Blocked . | . . . . . . Robot Schematics Acquired . | . . . . . . Robots Built . | . . . . . . Matter . | . . . . . . Time . | . . . . . . Total Robot Build Rating . | . . . . . . Part Schematics Acquired . | . . . . . . Parts Built . | . . . . . . Matter . | . . . . . . Time . | . . . . . . Total Part Build Rating . | . . . . . . Parts Repaired . | . . . . . . Time . | . . . . . . Parts Recycled . | . . . . . . Recycled Matter . | . . . . . . Retrieved Matter . | . . . . . . Retrieved Components 16 | . 16 . . . . Parts Scanalyzed . | . . . . . . Part Schematics Acquired . | . . . . . . Parts Damaged . | . . . . . . Bothacking | -11 -10 -10 -9 -9 -9 ------------ Run | Scr Mat Min Mat Min Exi Used RIF Installer . | . . . . . . Robots Hacked . | . . . . . . Non-combat . | . . . . . . Combat . | . . . . . . Robot Hacks Applied . | . . . . . . Relay Couplers Released . | . . . . . . Robots Rewired . | . . . . . . Allies Hacked . | . . . . . . Hacks Repelled . | . . . . . . Allies | -11 -10 -10 -9 -9 -9 -------- Run | Scr Mat Min Mat Min Exi Total Allies 1 | . 1 . . . . Largest Group 1 | . 1 . . . . Highest-Rated Group 10 | . 10 . . . . Highest-Rated Ally 10 | . 10 . . . . Total Orders 2 | . 2 . . . . GOTO 2 | . 2 . . . . Ally Attacks . | . . . . . . Total Damage . | . . . . . . Kills . | . . . . . . Allies Corrupted . | . . . . . . Allies Melted . | . . . . . . Intel | -11 -10 -10 -9 -9 -9 ------- Run | Scr Mat Min Mat Min Exi Robot Analysis Total . | . . . . . . Derelict Logs Recovered 1 | . . . . 1 . Drone Launches . | . . . . . . Drone Recoveries . | . . . . . . Exploration | -11 -10 -10 -9 -9 -9 ------------- Run | Scr Mat Min Mat Min Exi Turns Passed 2484 | 27 893 46 809 412 297 Spaces Moved 3649 | 36 1125 99 1171 818 400 Core 90 | 36 54 . . . . Treads . | . . . . . . Legs . | . . . . . . Wheels . | . . . . . . Hover . | . . . . . . Flight 3559 | . 1071 99 1171 818 400 Fastest Speed 32 | 50 37 40 32 32 32 Average Speed 36 | 50 43 40 34 32 32 Slowest Speed 120 | 50 120 40 40 32 32 Overloaded Moves . | . . . . . . Propulsion Burnouts . | . . . . . . Robots Hopped 44 | . 16 . 8 20 . Cave-ins Triggered . | . . . . . . Exploration Rate (%) 59 | 3 98 20 83 95 57 Regions Visited 5 Branch Regions 3 Pre-discovered Areas 4 | . 1 1 . 1 1 Known Exits Taken 2 | . . . 1 1 . Unknown Exits Taken 3 | 1 1 1 . . . Scrap Searched 2 | . . 1 . 1 . Spaces Dug 4 | . . . 4 . . Terrain Destroyed 164 | . 65 . 51 26 22 Melee . | . . . . . . Projectile 4 | . . . 4 . . AOE 160 | . 65 . 47 26 22 Actions | -11 -10 -10 -9 -9 -9 --------- Run | Scr Mat Min Mat Min Exi Total 4359 | 43 1356 104 1425 919 512 Wait 235 | . 60 6 59 61 49 Move 3557 | 35 1093 98 1154 777 400 Hop 43 | . 15 . 8 20 . Pick Up 18 | 1 2 . 6 7 2 Fast Attach 39 | 5 13 . 20 1 . Attach 2 | . 1 . 1 . . Detach 1 | . 1 . . . . Swap 11 | . 4 . 2 2 3 Drop 35 | 2 11 . 13 6 3 Fire 335 | . 130 . 127 30 48 Melee . | . . . . . . Ram . | . . . . . . Kick . | . . . . . . Crush . | . . . . . . Escape Stasis . | . . . . . . Rewire . | . . . . . . Trap . | . . . . . . Miscellaneous 83 | . 26 . 35 15 7 Route ------- -11/Scrapyard -10/Materials (discovered 5 exits: *Mat x3 / [*Min x2]) -10/Mines -9/Materials (discovered 5 exits: *Mat x2 / *Min x2 / [*Sto]) -9/Mines (discovered 3 exits: *Mat x2 / *Exi) -9/Exiles History --------- Turn | Location | Event 1 | -11/Scrapyard | Upgraded with Propulsion slot (x1) 1 | -11/Scrapyard | Upgraded with Utility slot (x2) 1 | -11/Scrapyard | Upgraded with Weapon slot (x1) 9 | -11/Scrapyard | Discovered new exit (range 14) 28 | -11/Scrapyard | Entered Materials 169 | -10/Materials | Discovered new exit (range 16) 297 | -10/Materials | Discovered new exit (range 16) 311 | -10/Materials | Build established: Mutant 347 | -10/Materials | Reached level 2 355 | -10/Materials | Upgraded with Utility slot (x1) 387 | -10/Materials | Discovered new exit (range 9) 426 | -10/Materials | Discovered new exit (range 11) 556 | -10/Materials | Discovered new exit (range 11) 846 | -10/Materials | Reached level 3 848 | -10/Materials | Upgraded with Utility slot (x1) 921 | -10/Materials | Entered Mines 922 | -10/Mines | Learned location of Storage (-9) 927 | -10/Mines | Discovered new exit (range 8) 952 | -10/Mines | Assembled infested the area 967 | -10/Mines | Entered Materials 969 | -9/Materials | Reached level 4 969 | -9/Materials | Upgraded with Propulsion slot (x1) 1022 | -9/Materials | Discovered new exit (range 12) 1073 | -9/Materials | Reached level 5 1248 | -9/Materials | Reached level 6 1252 | -9/Materials | Upgraded with Weapon slot (x1) 1271 | -9/Materials | Discovered new exit (range 12) 1349 | -9/Materials | Discovered new exit (range 15) 1367 | -9/Materials | First assault squad dispatched 1373 | -9/Materials | Build established: Scavenger-Mutant 1499 | -9/Materials | Reached level 7 1580 | -9/Materials | Discovered new exit (range 12) 1591 | -9/Materials | Identified exit to Materials 1683 | -9/Materials | Discovered new exit (range 8) 1728 | -9/Materials | Reached level 8 1773 | -9/Materials | Identified exit to Mines 1775 | -9/Materials | Upgraded with Utility slot (x1) 1776 | -9/Materials | Entered Mines 1788 | -9/Mines | Discovered exit to Materials (range 6) 1838 | -9/Mines | Discovered exit to Materials (range 10) 1843 | -9/Mines | Found a hidden stash of uninstalled traps 1876 | -9/Mines | Build established: Hacker-Sprinter 1913 | -9/Mines | Reached level 9 1921 | -9/Mines | Met a Derelict who couldn't figure out how to use a Trap Extractor 2071 | -9/Mines | Learned location of Recycling (-9) 2132 | -9/Mines | Deemed a non-threat by the Exiles lab entrance 2132 | -9/Mines | Discovered new exit (range 5) 2133 | -9/Mines | Identified exit to Exiles 2156 | -9/Mines | Joined a pair of Derelicts in attacking an 0b10 outpost 2188 | -9/Mines | Entered Exiles 2196 | -9/Exiles | Met 8R-AWN 2202 | -9/Exiles | Met EX-HEX 2211 | -9/Exiles | Met EX-BIN 2214 | -9/Exiles | Aligned with FarCom system 2215 | -9/Exiles | Given EX-Vault access code 2223 | -9/Exiles | Met EX-DEC 2225 | -9/Exiles | Learned location of Zion (-6) 2241 | -9/Exiles | Opened EX-Vault 2249 | -9/Exiles | Found Field Lobotomy Kit 2253 | -9/Exiles | Found Modified TNC 2261 | -9/Exiles | Warned to stay clear of 0b10 Research branches 2284 | -9/Exiles | Attacked by the Exiles 2323 | -9/Exiles | Destroyed 7 combat bots 2422 | -9/Exiles | Core integrity fell below 50% 2464 | -9/Exiles | Core integrity fell below 20% 2485 | -9/Exiles | Destroyed by DAS Turret with DAS Cannon Last Messages --------------- 02371_ Penetrated by HV Slug. 02371_ HV Slug penetrates Wall. 02374_ Dropped Protomatter-56. 02380_ Used Protomatter to restore core integrity (+168, depleted) 02382_ Penetrated by HV Slug. 02382_ HV Slug penetrates Wall. 02382_ Penetrated by HV Slug. 02382_ HV Slug penetrates Wall. 02384_ Penetrated by HV Slug. 02386_ HV Slug penetrates Wall. 02386_ HV Slug penetrates EX-Vault Access. 02388_ Penetrated by HV Slug. 02408_ HV Slug penetrates Wall. 02408_ Penetrated by HV Slug. 02408_ HV Slug penetrates Wall. 02412_ Penetrated by HV Slug. 02442_ HV Slug penetrates Wall. 02446_ Penetrated by HV Slug. 02451_ HV Slug penetrates Wall. 02455_ Penetrated by HV Slug. Map ----- +----------------------------------------------------+ | ??????????#"" "#????????#" "" # ?????? | | ??????????? ""?????????#" """""#??????? | | ????????????" "?????????##" # ########??????? | | ????????????# #????????##"" # #????????????? | | ??????????### ###?######"" # ##???????????? | | """#####X# #"###""""""" ## #???????????? | | """""" " "" # # ############? | | "" """ " ###"""""""""## | | " " " """ """"# | | "" " | | ## " """ | | ?## " " | | ??## " " | | ???##" " | | ????#""" """""" | | ????#" ######""" | | ????"" ""##????#####""" | | ????""" """##?????????##""" | | ????"" """##???????????#"""" | | ?????" ""#???????????##"" | | ????" ##?#####??####"""" | | ????"" ##aaa####""" | | ????? """" | | ?????? | | ???????" | | ????????? @ " | | ?????????? " "" """ | | ?????????? ""## ##""" " " ""#" | | ??????????? ""#### ######""" """##""""" | | ??????????? """"#???# #????###""""######## | | ???????????? """????# #??????######??????? | | ???????????? "??????! ??????????????????? | | ???????????? ? ????????#" ?????????????????? | | ??????????????? ??????????#" ?????????????????? | | ??????????????????????????#!!""!"????????????????? | | ??????????????????????????########???????????????? | | ?????????????????????????????????????????????????? | | ?????????????????????????????????????????????????? | | ?????????????????????????????????????????????????? | | ?????????????????????????????????????????????????? | | ?????????????????????????????????????????????????? | | ?????????????????????????????????????????????????? | | ?????????????????????????????????????????????????? | | ?????????????????????????????????????????????????? | | ?????????????????????????????????????????????????? | | ?????????????????????????????????????????????????? | | ?????????????????????????????????????????????????? | | ?????????????????????????????????????????????????? | | ?????????????????????????????????????????????????? | | ?????????????????????????????????????????????????? | +----------------------------------------------------+ Best States ------------- Heat Dissipation 59 Energy Generation 17 Energy Capacity 465 Matter Stores 300 Matter Capacity 300 Sight Range 16 Terrain Scan Density 10 Evasion (%) 63 Targeting Accuracy 6 Offensive Hacking 20 Item Schematics ----------------- None Robot Schematics ------------------ None Fabricated ------------ Nothing Alien Tech Used ----------------- None Achievements -------------- None Challenges ------------ None RPGLIKE | -11 -10 -10 -9 -9 -9 --------- Run | Scr Mat Min Mat Min Exi Levels Raised 8 | . 2 . 5 1 . XP Earned 15422 | 3000 3123 500 7229 1401 169 XP Spent 14995 | 2850 3000 . 7550 1595 . Upgrades 23 | 7 3 . 10 3 . Propulsion Slot 2 | 1 . . 1 . . Utility Slot 5 | 2 2 . 1 . . Weapon Slot 2 | 1 . . 1 . . Core Integrity 1 | . . . . 1 . Heat Dissipation 2 | . . . 1 1 . Energy Generation 1 | . . . 1 . . Mass Support 2 | 2 . . . . . Inventory Capacity 6 | 1 1 . 3 1 . Ranged Accuracy 2 | . . . 2 . . Protomatter Created 943 | . 341 . 531 56 15 Integrity Restored 1563 | . 529 . 618 248 168 Core 1290 | . 467 . 455 200 168 Parts 273 | . 62 . 163 48 . Protomatter Decayed 228 | . 52 . 134 . 42 Game ------ Seed ThrusterParticleRedirector Manual? 0 Play Time 00:45:15 Cumulative 969.9 hours Start 2019.12.17 @ 17:29:04 End 2019.12.17 @ 18:37:45 Sessions 2 Manual Loads 0 Difficulty Rogue Special Mode Winter2019/RPGLIKE Game No. 307 Rogue 307 Adventurer 0 Explorer 0 Win Type - Total 70 Types 14/6/32/3/1/2/12 Lore% 97 Gallery% 95 Achievement% 82 Wizard Run 0 Options --------- ASCII 0 Keyboard 0 Movement Numpad Keybinds 0 Fullscreen 1 Font 18/SmallcapsGlow Map View 76x50 Tactical HUD 1 Map Filters NONE Filters NONE Steam 1 RUN: e9649c91-607d-4064-9644-ea67891ae6a8